[Event "*** Titled Tuesday Blitz"]
[Site "Chess.com"]
[Date "2019.04.02"]
[Round "5"]
[White "GadimbayliA"]
[Black "GrigorGrigorov"]
[Result "1-0"]
[WhiteElo "2806"]
[BlackElo "2716"]
[TimeControl "180+2"]
[EndTime "15:04:10 PDT"]
[Termination "GadimbayliA won by resignation"]

1. e4 {[%clk 0:03:01.9]} 1... c6 {[%clk 0:03:01]} 2. Nf3 {[%clk 0:03:02.2]} 2...
d5 {[%clk 0:03:02]} 3. exd5 {[%clk 0:03:03.9]} 3... cxd5 {[%clk 0:03:02.2]} 4.
Ne5 {[%clk 0:03:05.3]} 4... e6 {[%clk 0:02:49.9]} 5. d4 {[%clk 0:03:06.4]} 5...
Nc6 {[%clk 0:02:48.8]} 6. Bb5 {[%clk 0:03:06.8]} 6... a6 {[%clk 0:02:47.7]} 7.
Nxc6 {[%clk 0:02:28.3]} 7... Qc7 {[%clk 0:02:45.8]} 8. Na7+ {[%clk 0:02:25.8]}
8... Bd7 {[%clk 0:02:33]} 9. Bxd7+ {[%clk 0:02:26.6]} 9... Qxd7 {[%clk
0:02:32.9]} 10. O-O {[%clk 0:02:28.5]} 10... Rxa7 {[%clk 0:02:33.7]} 11. Bf4
{[%clk 0:02:29.5]} 11... Nf6 {[%clk 0:02:31.8]} 12. Nd2 {[%clk 0:02:29.1]} 12...
Be7 {[%clk 0:02:29.1]} 13. a4 {[%clk 0:02:29.3]} 13... O-O {[%clk 0:02:23.8]}
14. c3 {[%clk 0:02:30]} 14... Raa8 {[%clk 0:02:24.7]} 15. Qe2 {[%clk 0:02:26.7]}
15... b5 {[%clk 0:02:20.8]} 16. Nf3 {[%clk 0:02:12.6]} 16... b4 {[%clk
0:02:13.3]} 17. cxb4 {[%clk 0:02:09.8]} 17... Bxb4 {[%clk 0:02:12.9]} 18. Rfc1
{[%clk 0:02:11.2]} 18... Bd6 {[%clk 0:02:00.9]} 19. Bxd6 {[%clk 0:02:07.6]}
19... Qxd6 {[%clk 0:02:00.3]} 20. Ne5 {[%clk 0:02:09.5]} 20... Rfc8 {[%clk
0:01:54.7]} 21. Rc2 {[%clk 0:01:55.2]} 21... Rxc2 {[%clk 0:01:40.1]} 22. Qxc2
{[%clk 0:01:57.1]} 22... Qb4 {[%clk 0:01:35.5]} 23. Rc1 {[%clk 0:01:50.8]} 23...
h6 {[%clk 0:01:24]} 24. Nc6 {[%clk 0:01:44.6]} 24... Qb6 {[%clk 0:01:12.4]} 25.
b4 {[%clk 0:01:37.9]} 25... Ne4 {[%clk 0:01:06.6]} 26. f3 {[%clk 0:01:33.7]}
26... Nd6 {[%clk 0:01:04.4]} 27. Qc5 {[%clk 0:01:34]} 27... Qc7 {[%clk
0:00:50.1]} 28. b5 {[%clk 0:01:23]} 28... axb5 {[%clk 0:00:48.8]} 29. axb5
{[%clk 0:01:24.9]} 29... Nc8 {[%clk 0:00:43.5]} 30. Rb1 {[%clk 0:01:07.5]} 30...
Qf4 {[%clk 0:00:24.6]} 31. b6 {[%clk 0:01:01.1]} 31... Ra2 {[%clk 0:00:21.4]}
32. Kh1 {[%clk 0:00:50.5]} 32... Qd2 {[%clk 0:00:21.2]} 33. Rg1 {[%clk
0:00:49.6]} 33... Rb2 {[%clk 0:00:20.5]} 34. b7 {[%clk 0:00:39]} 34... Rxb7
{[%clk 0:00:20.6]} 35. Nd8 {[%clk 0:00:40]} 35... Rb8 {[%clk 0:00:15.6]} 36. Qc7
{[%clk 0:00:40.9]} 36... Ra8 {[%clk 0:00:13.5]} 37. Qxf7+ {[%clk 0:00:41.7]}
37... Kh8 {[%clk 0:00:13.6]} 38. Nxe6 {[%clk 0:00:34.6]} 38... Ra7 {[%clk
0:00:15]} 39. Qe8+ {[%clk 0:00:35.1]} 39... Kh7 {[%clk 0:00:16.4]} 40. Nf8+
{[%clk 0:00:35.1]} 40... Kg8 {[%clk 0:00:15.8]} 41. Ne6+ {[%clk 0:00:35.5]}
41... Kh7 {[%clk 0:00:15.7]} 42. Qxc8 {[%clk 0:00:37.4]} 42... Qe3 {[%clk
0:00:16]} 43. Nf8+ {[%clk 0:00:35.4]} 43... Kg8 {[%clk 0:00:16.6]} 44. Qe6+
{[%clk 0:00:27]} 44... Qxe6 {[%clk 0:00:15]} 45. Nxe6 {[%clk 0:00:28.9]} 45...
Kf7 {[%clk 0:00:14.1]} 46. Nf4 {[%clk 0:00:29.4]} 1-0

[Event "*** Titled Tuesday Blitz"]
[Site "Chess.com"]
[Date "2019.04.02"]
[Round "5"]
[White "Orest_Vovk"]
[Black "djogrodek1"]
[Result "0-1"]
[WhiteElo "2337"]
[BlackElo "2528"]
[TimeControl "180+2"]
[EndTime "15:04:11 PDT"]
[Termination "djogrodek1 won by checkmate"]

1. h4 {[%clk 0:03:01.9]} 1... c5 {[%clk 0:03:00.2]} 2. h5 {[%clk 0:03:03]} 2...
Nc6 {[%clk 0:02:58.4]} 3. Nc3 {[%clk 0:03:01.1]} 3... d5 {[%clk 0:02:57.6]} 4.
e4 {[%clk 0:03:01.9]} 4... d4 {[%clk 0:02:49.7]} 5. Nce2 {[%clk 0:03:02.7]} 5...
d3 {[%clk 0:02:38.4]} 6. Ng3 {[%clk 0:02:58.9]} 6... dxc2 {[%clk 0:02:35.1]} 7.
Qxc2 {[%clk 0:02:59.7]} 7... e6 {[%clk 0:02:32.1]} 8. Nf3 {[%clk 0:02:59.2]}
8... Bd7 {[%clk 0:02:32.1]} 9. d3 {[%clk 0:02:44.9]} 9... Rc8 {[%clk 0:02:29.1]}
10. a3 {[%clk 0:02:41.6]} 10... h6 {[%clk 0:02:22.1]} 11. Be2 {[%clk 0:02:37.6]}
11... Nf6 {[%clk 0:02:22.7]} 12. Bf4 {[%clk 0:02:33.3]} 12... Be7 {[%clk
0:02:12.6]} 13. Qd2 {[%clk 0:02:25.2]} 13... Na5 {[%clk 0:02:03.2]} 14. Bd1
{[%clk 0:02:19.5]} 14... Bb5 {[%clk 0:01:57.5]} 15. Bc2 {[%clk 0:02:10.7]} 15...
Qb6 {[%clk 0:01:20.6]} 16. O-O {[%clk 0:01:52.5]} 16... Rd8 {[%clk 0:01:15.6]}
17. Qc3 {[%clk 0:01:44.3]} 17... Nc6 {[%clk 0:01:12.1]} 18. a4 {[%clk 0:01:37]}
18... Ba6 {[%clk 0:01:11.4]} 19. a5 {[%clk 0:01:37.7]} 19... Qb4 {[%clk
0:01:11.6]} 20. Rfd1 {[%clk 0:01:28]} 20... O-O {[%clk 0:01:09]} 21. Ne5 {[%clk
0:01:11.7]} 21... Nxe5 {[%clk 0:01:00.1]} 22. Bxe5 {[%clk 0:01:12.2]} 22... Qxc3
{[%clk 0:00:48.9]} 23. Bxc3 {[%clk 0:01:04.5]} 23... Ng4 {[%clk 0:00:44.7]} 24.
d4 {[%clk 0:00:26.9]} 24... cxd4 {[%clk 0:00:43.5]} 25. Bxd4 {[%clk 0:00:27.3]}
25... Bf6 {[%clk 0:00:39.9]} 26. Bxa7 {[%clk 0:00:22.5]} 26... Bxb2 {[%clk
0:00:38]} 27. Bb6 {[%clk 0:00:20.4]} 27... Rc8 {[%clk 0:00:37]} 28. Bb3 {[%clk
0:00:10.5]} 28... Bxa1 {[%clk 0:00:37.4]} 29. Rxa1 {[%clk 0:00:12.4]} 29... Ne5
{[%clk 0:00:36.4]} 30. Bd1 {[%clk 0:00:10.4]} 30... Nc4 {[%clk 0:00:33.9]} 31.
Be2 {[%clk 0:00:09.4]} 31... Rc6 {[%clk 0:00:32.1]} 32. Bxc4 {[%clk 0:00:10.1]}
32... Rxc4 {[%clk 0:00:30.6]} 33. f3 {[%clk 0:00:10.8]} 33... f5 {[%clk
0:00:30.2]} 34. exf5 {[%clk 0:00:09.5]} 34... exf5 {[%clk 0:00:32.1]} 35. Re1
{[%clk 0:00:09.6]} 35... Rf7 {[%clk 0:00:28.9]} 36. Re8+ {[%clk 0:00:10]} 36...
Kh7 {[%clk 0:00:29.7]} 37. Ne2 {[%clk 0:00:11.2]} 37... f4 {[%clk 0:00:22.7]}
38. Nd4 {[%clk 0:00:11.3]} 38... g6 {[%clk 0:00:21.6]} 39. hxg6+ {[%clk
0:00:10.5]} 39... Kxg6 {[%clk 0:00:23.5]} 40. Ne6 {[%clk 0:00:11.6]} 40... Rf6
{[%clk 0:00:23.6]} 41. Nc7 {[%clk 0:00:09.3]} 41... Rc1+ {[%clk 0:00:23.9]} 42.
Kh2 {[%clk 0:00:09.8]} 42... Rf5 {[%clk 0:00:25.4]} 43. Kh3 {[%clk 0:00:05.8]}
43... Rh1+ {[%clk 0:00:26.4]} 44. Kg4 {[%clk 0:00:06.8]} 44... h5# {[%clk
0:00:28.3]} 0-1

[Event "*** Titled Tuesday Blitz"]
[Site "Chess.com"]
[Date "2019.04.02"]
[Round "5"]
[White "zurzan"]
[Black "europa2012"]
[Result "0-1"]
[WhiteElo "2031"]
[BlackElo "2110"]
[TimeControl "180+2"]
[EndTime "15:04:12 PDT"]
[Termination "europa2012 won by resignation"]

1. c4 {[%clk 0:03:01.9]} 1... e5 {[%clk 0:02:59.7]} 2. Nc3 {[%clk 0:03:02.1]}
2... Nc6 {[%clk 0:03:00.5]} 3. g3 {[%clk 0:03:02.9]} 3... Nf6 {[%clk 0:03:01.8]}
4. Bg2 {[%clk 0:03:03.8]} 4... Bc5 {[%clk 0:03:03.2]} 5. e3 {[%clk 0:03:04.5]}
5... d6 {[%clk 0:03:04.4]} 6. Nge2 {[%clk 0:03:05.4]} 6... O-O {[%clk
0:03:05.1]} 7. O-O {[%clk 0:03:06.3]} 7... h6 {[%clk 0:03:06.1]} 8. d4 {[%clk
0:03:07]} 8... Bb6 {[%clk 0:03:05.8]} 9. d5 {[%clk 0:03:06.7]} 9... Ne7 {[%clk
0:03:06.4]} 10. b4 {[%clk 0:03:06.6]} 10... a6 {[%clk 0:03:07.3]} 11. a4 {[%clk
0:03:06.7]} 11... Rb8 {[%clk 0:03:06.5]} 12. a5 {[%clk 0:03:07]} 12... Ba7
{[%clk 0:03:07.6]} 13. b5 {[%clk 0:03:07.8]} 13... Bg4 {[%clk 0:03:04.6]} 14. h3
{[%clk 0:03:07.5]} 14... Bh5 {[%clk 0:03:04.8]} 15. Qa4 {[%clk 0:02:58.1]} 15...
Nd7 {[%clk 0:02:55.4]} 16. Ba3 {[%clk 0:02:54.2]} 16... Nc5 {[%clk 0:02:53.5]}
17. Bxc5 {[%clk 0:02:54.1]} 17... Bxc5 {[%clk 0:02:52.1]} 18. g4 {[%clk
0:02:54.3]} 18... Bg6 {[%clk 0:02:52]} 19. Ne4 {[%clk 0:02:47.8]} 19... Ba7
{[%clk 0:02:48.4]} 20. N4g3 {[%clk 0:02:47]} 20... f5 {[%clk 0:02:47.4]} 21.
gxf5 {[%clk 0:02:47.2]} 21... Nxf5 {[%clk 0:02:47.2]} 22. Nxf5 {[%clk 0:02:48]}
22... Bxf5 {[%clk 0:02:47.7]} 23. Ng3 {[%clk 0:02:48.3]} 23... Qg5 {[%clk
0:02:46.1]} 24. Nxf5 {[%clk 0:02:43]} 24... Rxf5 {[%clk 0:02:42.9]} 25. Qc2
{[%clk 0:02:27.9]} 25... Rbf8 {[%clk 0:02:39.1]} 26. Qe4 {[%clk 0:02:24]} 26...
R8f6 {[%clk 0:02:26]} 27. Qg4 {[%clk 0:02:11.3]} 27... Qxg4 {[%clk 0:02:20]} 28.
hxg4 {[%clk 0:02:12.2]} 28... Rg5 {[%clk 0:02:21.5]} 29. Bh3 {[%clk 0:01:37.1]}
29... h5 {[%clk 0:02:18.5]} 30. f3 {[%clk 0:01:32.7]} 30... Bxe3+ {[%clk
0:02:17.6]} 31. Kg2 {[%clk 0:01:31.8]} 31... Bd4 {[%clk 0:02:04.3]} 32. Rab1
{[%clk 0:01:32]} 32... Bc3 {[%clk 0:01:34.7]} 33. bxa6 {[%clk 0:01:32.7]} 33...
bxa6 {[%clk 0:01:34.1]} 34. Rb3 {[%clk 0:01:29.3]} 34... Bxa5 {[%clk 0:01:34.7]}
35. Ra3 {[%clk 0:01:30]} 35... Bb6 {[%clk 0:01:35.2]} 36. Rxa6 {[%clk
0:01:30.4]} 36... hxg4 {[%clk 0:01:29.1]} 37. Bxg4 {[%clk 0:01:28.8]} 37... e4
{[%clk 0:01:25.5]} 38. Kg3 {[%clk 0:01:28.2]} 38... e3 {[%clk 0:01:04.3]} 39. f4
{[%clk 0:01:28.1]} 39... Rgg6 {[%clk 0:00:44.4]} 40. f5 {[%clk 0:01:25.6]} 40...
Rg5 {[%clk 0:00:43.4]} 41. Kh4 {[%clk 0:01:19.2]} 41... e2 {[%clk 0:00:28.4]}
42. Re1 {[%clk 0:01:19.8]} 42... Bf2+ {[%clk 0:00:27.3]} 43. Kxg5 {[%clk
0:01:19.4]} 43... Bxe1 {[%clk 0:00:28.8]} 44. Ra2 {[%clk 0:01:08.6]} 44... Bd2+
{[%clk 0:00:25.3]} 45. Rxd2 {[%clk 0:01:09.1]} 45... e1=Q {[%clk 0:00:26.3]} 46.
Re2 {[%clk 0:01:06.6]} 46... Qc1+ {[%clk 0:00:27.3]} 47. Kh4 {[%clk 0:01:05.3]}
47... Rh6+ {[%clk 0:00:26.7]} 48. Kg3 {[%clk 0:01:05.4]} 48... Qg1+ {[%clk
0:00:27.1]} 49. Kf3 {[%clk 0:00:59.5]} 49... Qf1+ {[%clk 0:00:28.1]} 50. Ke3
{[%clk 0:00:50.1]} 50... Rh4 {[%clk 0:00:29.1]} 51. Bf3 {[%clk 0:00:46]} 51...
Rh3 {[%clk 0:00:28]} 52. Rf2 {[%clk 0:00:44.3]} 52... Qe1+ {[%clk 0:00:24.4]}
53. Re2 {[%clk 0:00:44.5]} 53... Qc3+ {[%clk 0:00:25.1]} 0-1

[Event "*** Titled Tuesday Blitz"]
[Site "Chess.com"]
[Date "2019.04.02"]
[Round "5"]
[White "LimeInTheCoconut"]
[Black "mikhaillushenkov"]
[Result "0-1"]
[WhiteElo "2503"]
[BlackElo "2660"]
[TimeControl "180+2"]
[EndTime "15:04:15 PDT"]
[Termination "mikhaillushenkov won by resignation"]

1. e4 {[%clk 0:03:01.9]} 1... e6 {[%clk 0:03:00.2]} 2. d4 {[%clk 0:03:02]} 2...
d5 {[%clk 0:03:02.1]} 3. exd5 {[%clk 0:03:03.7]} 3... exd5 {[%clk 0:03:03.1]} 4.
Nf3 {[%clk 0:03:05.6]} 4... Bd6 {[%clk 0:03:03.7]} 5. c4 {[%clk 0:03:06.4]} 5...
dxc4 {[%clk 0:03:00]} 6. Bxc4 {[%clk 0:03:06.9]} 6... Ne7 {[%clk 0:02:57.8]} 7.
O-O {[%clk 0:03:07.9]} 7... O-O {[%clk 0:02:58.7]} 8. h3 {[%clk 0:02:59.5]} 8...
Bf5 {[%clk 0:02:58.6]} 9. Nc3 {[%clk 0:03:00.4]} 9... Nd7 {[%clk 0:02:57.7]} 10.
Nb5 {[%clk 0:02:58]} 10... Nb6 {[%clk 0:02:57.5]} 11. Nxd6 {[%clk 0:02:56.5]}
11... cxd6 {[%clk 0:02:59.4]} 12. Bb3 {[%clk 0:02:53.1]} 12... h6 {[%clk
0:02:57.7]} 13. Re1 {[%clk 0:02:50.7]} 13... Nbd5 {[%clk 0:02:55.6]} 14. Bd2
{[%clk 0:02:48.7]} 14... Rc8 {[%clk 0:02:53.2]} 15. Rc1 {[%clk 0:02:43]} 15...
Qd7 {[%clk 0:02:51.3]} 16. Qe2 {[%clk 0:02:18.7]} 16... a6 {[%clk 0:02:41.2]}
17. Rxc8 {[%clk 0:02:16.7]} 17... Rxc8 {[%clk 0:02:41.4]} 18. Rc1 {[%clk
0:02:18.6]} 18... Rxc1+ {[%clk 0:02:41.2]} 19. Bxc1 {[%clk 0:02:20.5]} 19... Be6
{[%clk 0:02:38.1]} 20. Bd2 {[%clk 0:02:17.8]} 20... Nc7 {[%clk 0:02:37.5]} 21.
Bc2 {[%clk 0:01:50.3]} 21... Ned5 {[%clk 0:02:22.8]} 22. Qd3 {[%clk 0:01:46.1]}
22... Nf6 {[%clk 0:02:23.4]} 23. b3 {[%clk 0:01:38.1]} 23... Bd5 {[%clk
0:02:23.8]} 24. Nh2 {[%clk 0:01:32]} 24... Be4 {[%clk 0:02:24.1]} 25. Qc3 {[%clk
0:01:30.4]} 25... Ncd5 {[%clk 0:02:24.5]} 26. Qb2 {[%clk 0:01:31.1]} 26... Bxc2
{[%clk 0:02:21.9]} 27. Qxc2 {[%clk 0:01:33]} 27... Qe6 {[%clk 0:02:20.8]} 28.
Nf1 {[%clk 0:01:29.3]} 28... Ne4 {[%clk 0:02:08.9]} 29. Be3 {[%clk 0:01:23.3]}
29... h5 {[%clk 0:02:06.2]} 30. Qc4 {[%clk 0:01:17.3]} 30... g6 {[%clk
0:01:44.5]} 31. a4 {[%clk 0:01:14.3]} 31... Kg7 {[%clk 0:01:45.1]} 32. b4 {[%clk
0:01:08.5]} 32... f5 {[%clk 0:01:18.1]} 33. Bc1 {[%clk 0:01:00.9]} 33... Nec3
{[%clk 0:01:06.1]} 34. Ne3 {[%clk 0:00:42.4]} 34... f4 {[%clk 0:01:00]} 35. Nxd5
{[%clk 0:00:36.9]} 35... Nxd5 {[%clk 0:01:01.9]} 36. Bd2 {[%clk 0:00:30]} 36...
Kf6 {[%clk 0:00:56.8]} 37. b5 {[%clk 0:00:27.5]} 37... axb5 {[%clk 0:00:55.6]}
38. Qxb5 {[%clk 0:00:25.3]} 38... b6 {[%clk 0:00:56.7]} 39. Qd3 {[%clk
0:00:21.6]} 39... Qf5 {[%clk 0:00:54.8]} 40. Qb3 {[%clk 0:00:20.7]} 40... Qe4
{[%clk 0:00:53.6]} 41. Qb2 {[%clk 0:00:12.4]} 41... g5 {[%clk 0:00:53.5]} 42. f3
{[%clk 0:00:08]} 42... Qe2 {[%clk 0:00:52.5]} 43. Qb3 {[%clk 0:00:05.5]} 43...
Ke6 {[%clk 0:00:46.2]} 44. Qb2 {[%clk 0:00:05.7]} 44... Qc4 {[%clk 0:00:33.9]}
45. Qb1 {[%clk 0:00:04.6]} 45... Qxd4+ {[%clk 0:00:34.8]} 0-1

[Event "*** Titled Tuesday Blitz"]
[Site "Chess.com"]
[Date "2019.04.02"]
[Round "5"]
[White "Satscho"]
[Black "hellokostya"]
[Result "0-1"]
[WhiteElo "2305"]
[BlackElo "2500"]
[TimeControl "180+2"]
[EndTime "15:04:17 PDT"]
[Termination "hellokostya won by resignation"]

1. e4 {[%clk 0:03:01.9]} 1... e5 {[%clk 0:02:58.9]} 2. Nf3 {[%clk 0:03:03.1]}
2... Nc6 {[%clk 0:02:59.4]} 3. d4 {[%clk 0:03:04.7]} 3... exd4 {[%clk
0:02:59.6]} 4. Nxd4 {[%clk 0:03:06.6]} 4... Nf6 {[%clk 0:02:58.6]} 5. Nxc6
{[%clk 0:03:07.3]} 5... bxc6 {[%clk 0:02:49.9]} 6. e5 {[%clk 0:03:08.7]} 6...
Qe7 {[%clk 0:02:47.9]} 7. Qe2 {[%clk 0:03:10.1]} 7... Nd5 {[%clk 0:02:46.5]} 8.
c4 {[%clk 0:03:11.7]} 8... Nb6 {[%clk 0:02:46.5]} 9. Nc3 {[%clk 0:03:12.8]} 9...
Bb7 {[%clk 0:02:46.5]} 10. Qe4 {[%clk 0:03:04.3]} 10... O-O-O {[%clk 0:02:45.5]}
11. Bd3 {[%clk 0:02:42.7]} 11... d5 {[%clk 0:02:30.1]} 12. cxd5 {[%clk
0:02:16.7]} 12... cxd5 {[%clk 0:02:29.1]} 13. Qf5+ {[%clk 0:02:15]} 13... Qe6
{[%clk 0:02:24.2]} 14. O-O {[%clk 0:02:15]} 14... Be7 {[%clk 0:02:15.1]} 15. Nb5
{[%clk 0:02:07.9]} 15... Kb8 {[%clk 0:02:12.4]} 16. Qxe6 {[%clk 0:02:01.2]}
16... fxe6 {[%clk 0:02:12.7]} 17. Nd4 {[%clk 0:02:03.1]} 17... Nd7 {[%clk
0:01:45.1]} 18. Nxe6 {[%clk 0:02:00.7]} 18... Rdg8 {[%clk 0:01:42.5]} 19. f4
{[%clk 0:01:58.2]} 19... g5 {[%clk 0:01:38.4]} 20. f5 {[%clk 0:01:37.3]} 20...
Nxe5 {[%clk 0:01:37.6]} 21. f6 {[%clk 0:01:30.7]} 21... Bxf6 {[%clk 0:01:29.9]}
22. Rxf6 {[%clk 0:01:32.6]} 22... Nxd3 {[%clk 0:01:31]} 23. Bxg5 {[%clk
0:01:30.8]} 23... d4 {[%clk 0:01:16.7]} 24. g3 {[%clk 0:01:23]} 24... Ne5 {[%clk
0:01:02.3]} 25. Bf4 {[%clk 0:01:18.7]} 25... Nf3+ {[%clk 0:00:50.7]} 26. Kf2
{[%clk 0:01:19.5]} 26... Nxh2 {[%clk 0:00:49.8]} 27. Bxc7+ {[%clk 0:00:37.9]}
27... Ka8 {[%clk 0:00:49.6]} 28. Rf7 {[%clk 0:00:37.1]} 28... Bd5 {[%clk
0:00:47.6]} 29. Re7 {[%clk 0:00:31.2]} 29... Ng4+ {[%clk 0:00:44.2]} 30. Ke2
{[%clk 0:00:32]} 30... Bc4+ {[%clk 0:00:38.6]} 31. Kd2 {[%clk 0:00:32.5]} 31...
Bxe6 {[%clk 0:00:11.6]} 32. Rxe6 {[%clk 0:00:32.9]} 32... Kb7 {[%clk 0:00:13.5]}
33. Bf4 {[%clk 0:00:32.3]} 33... Re8 {[%clk 0:00:13.7]} 34. Rh6 {[%clk 0:00:30]}
34... Nxh6 {[%clk 0:00:10.3]} 35. Bxh6 {[%clk 0:00:29]} 35... Re6 {[%clk
0:00:11.6]} 36. Bf4 {[%clk 0:00:29.3]} 36... Rhe8 {[%clk 0:00:12.6]} 37. Rh1
{[%clk 0:00:28.5]} 37... Re2+ {[%clk 0:00:13.3]} 38. Kd3 {[%clk 0:00:30]} 38...
Rxb2 {[%clk 0:00:12.9]} 39. Rxh7+ {[%clk 0:00:30.9]} 39... Ka6 {[%clk
0:00:13.9]} 40. a3 {[%clk 0:00:21]} 40... Rb3+ {[%clk 0:00:14.4]} 41. Kxd4
{[%clk 0:00:22.6]} 41... Rxa3 {[%clk 0:00:16.1]} 42. Rh6+ {[%clk 0:00:20.9]}
42... Kb5 {[%clk 0:00:16.5]} 43. Rh5+ {[%clk 0:00:21.2]} 43... Ka4 {[%clk
0:00:17.3]} 44. Rh7 {[%clk 0:00:21.4]} 44... a5 {[%clk 0:00:17.8]} 45. Kc4
{[%clk 0:00:18.1]} 45... Rc8+ {[%clk 0:00:18.2]} 46. Bc7 {[%clk 0:00:18.8]}
46... Rxg3 {[%clk 0:00:18.7]} 47. Kd5 {[%clk 0:00:17.4]} 47... Rg5+ {[%clk
0:00:19]} 48. Be5 {[%clk 0:00:17.8]} 48... Re8 {[%clk 0:00:19.1]} 49. Rh4+
{[%clk 0:00:17.9]} 49... Kb5 {[%clk 0:00:20.4]} 0-1

[Event "*** Titled Tuesday Blitz"]
[Site "Chess.com"]
[Date "2019.04.02"]
[Round "5"]
[White "bugsbunny444"]
[Black "BlueWizzard"]
[Result "1-0"]
[WhiteElo "2494"]
[BlackElo "2696"]
[TimeControl "180+2"]
[EndTime "15:04:19 PDT"]
[Termination "bugsbunny444 won by resignation"]

1. Nf3 {[%clk 0:03:01.9]} 1... Nf6 {[%clk 0:03:01.9]} 2. c4 {[%clk 0:03:03.1]}
2... g6 {[%clk 0:03:02.2]} 3. b4 {[%clk 0:03:03.9]} 3... Bg7 {[%clk 0:03:03.9]}
4. Bb2 {[%clk 0:03:05.5]} 4... a5 {[%clk 0:03:03]} 5. b5 {[%clk 0:03:06.4]} 5...
a4 {[%clk 0:03:04]} 6. g3 {[%clk 0:03:07.1]} 6... a3 {[%clk 0:03:00.3]} 7. Nxa3
{[%clk 0:03:07.9]} 7... c6 {[%clk 0:02:57.7]} 8. Bg2 {[%clk 0:03:04.6]} 8... O-O
{[%clk 0:02:58.7]} 9. O-O {[%clk 0:03:05.5]} 9... d6 {[%clk 0:02:59.6]} 10. d3
{[%clk 0:03:05.8]} 10... e5 {[%clk 0:02:59.7]} 11. Nd2 {[%clk 0:03:01.9]} 11...
Bd7 {[%clk 0:02:56.7]} 12. Qb3 {[%clk 0:02:41.3]} 12... Qa5 {[%clk 0:02:49.3]}
13. Rfd1 {[%clk 0:02:22.5]} 13... Be6 {[%clk 0:02:32.6]} 14. Nc2 {[%clk
0:02:03.5]} 14... Nfd7 {[%clk 0:02:20.7]} 15. Qb4 {[%clk 0:01:56.7]} 15... Qc7
{[%clk 0:02:19.9]} 16. a4 {[%clk 0:01:52.2]} 16... Nc5 {[%clk 0:02:17.7]} 17.
Nb3 {[%clk 0:01:41.9]} 17... Nbd7 {[%clk 0:02:16.5]} 18. Nxc5 {[%clk 0:01:30.1]}
18... dxc5 {[%clk 0:02:17]} 19. Qb3 {[%clk 0:01:22.3]} 19... f5 {[%clk
0:02:17.5]} 20. Bc3 {[%clk 0:01:18]} 20... h5 {[%clk 0:02:14.8]} 21. Rdb1 {[%clk
0:01:15.7]} 21... h4 {[%clk 0:02:15.5]} 22. bxc6 {[%clk 0:01:16.8]} 22... bxc6
{[%clk 0:02:16.3]} 23. Qb7 {[%clk 0:01:17.9]} 23... Rfc8 {[%clk 0:02:11]} 24.
Qxc7 {[%clk 0:01:11.6]} 24... Rxc7 {[%clk 0:02:12.9]} 25. a5 {[%clk 0:01:02.9]}
25... Ra6 {[%clk 0:02:12.9]} 26. Ne1 {[%clk 0:00:56.5]} 26... hxg3 {[%clk
0:02:11.5]} 27. hxg3 {[%clk 0:00:57.3]} 27... Kf7 {[%clk 0:02:06.6]} 28. Ra3
{[%clk 0:00:56.3]} 28... Rca7 {[%clk 0:02:02.7]} 29. Nf3 {[%clk 0:00:55.3]}
29... Bf6 {[%clk 0:02:03.4]} 30. Nd2 {[%clk 0:00:52]} 30... e4 {[%clk
0:01:57.5]} 31. dxe4 {[%clk 0:00:52.8]} 31... Bxc3 {[%clk 0:01:57]} 32. Rxc3
{[%clk 0:00:54.7]} 32... Rxa5 {[%clk 0:01:58.2]} 33. exf5 {[%clk 0:00:56.1]}
33... gxf5 {[%clk 0:01:59]} 34. Bxc6 {[%clk 0:00:56.5]} 34... Ne5 {[%clk
0:01:58.9]} 35. Bd5 {[%clk 0:00:27.9]} 35... Ra2 {[%clk 0:01:59.3]} 36. Nf3
{[%clk 0:00:15.8]} 36... Bxd5 {[%clk 0:01:46.4]} 37. Nxe5+ {[%clk 0:00:13.5]}
37... Kf6 {[%clk 0:01:47.5]} 38. cxd5 {[%clk 0:00:14.5]} 38... Kxe5 {[%clk
0:01:48.4]} 39. Rxc5 {[%clk 0:00:12.7]} 39... Rxe2 {[%clk 0:01:48.6]} 40. Kf1
{[%clk 0:00:09]} 40... Raa2 {[%clk 0:01:48.1]} 41. Re1 {[%clk 0:00:10.3]} 41...
Rxe1+ {[%clk 0:01:46.6]} 42. Kxe1 {[%clk 0:00:12.2]} 42... Kd6 {[%clk
0:01:48.1]} 43. Rb5 {[%clk 0:00:12.8]} 43... Rc2 {[%clk 0:01:48]} 44. Kf1 {[%clk
0:00:12.9]} 44... Ke5 {[%clk 0:01:46.8]} 45. Kg2 {[%clk 0:00:13.7]} 45... Rc3
{[%clk 0:01:47.6]} 46. d6+ {[%clk 0:00:13.1]} 46... Ke6 {[%clk 0:01:48.4]} 47.
Rd5 {[%clk 0:00:07.1]} 47... Rc8 {[%clk 0:01:40.5]} 48. d7 {[%clk 0:00:08]}
48... Rd8 {[%clk 0:01:41.5]} 49. Rd4 {[%clk 0:00:06.9]} 49... Ke5 {[%clk
0:01:42.7]} 50. Rd2 {[%clk 0:00:07.8]} 50... Ke4 {[%clk 0:01:43.9]} 51. Rd1
{[%clk 0:00:08.2]} 51... Ke5 {[%clk 0:01:44.3]} 52. Kf3 {[%clk 0:00:08.9]} 52...
f4 {[%clk 0:01:46.2]} 53. gxf4+ {[%clk 0:00:09.3]} 53... Kf5 {[%clk 0:01:48.1]}
54. Rd5+ {[%clk 0:00:09.7]} 54... Ke6 {[%clk 0:01:49.2]} 55. Rd4 {[%clk
0:00:10.8]} 55... Kf6 {[%clk 0:01:51.1]} 56. Kg4 {[%clk 0:00:09.7]} 56... Ke6
{[%clk 0:01:53]} 57. f5+ {[%clk 0:00:10.3]} 57... Kf7 {[%clk 0:01:54.6]} 58. Kf4
{[%clk 0:00:11.2]} 58... Kf6 {[%clk 0:01:56.2]} 59. Rd5 {[%clk 0:00:11.4]} 59...
Rxd7 {[%clk 0:01:57.6]} 60. Re5 {[%clk 0:00:06.6]} 60... Rd4+ {[%clk 0:01:57.7]}
61. Re4 {[%clk 0:00:08]} 61... Rd2 {[%clk 0:01:57.9]} 62. f3 {[%clk 0:00:08.9]}
62... Rd6 {[%clk 0:01:58]} 63. Re6+ {[%clk 0:00:08.7]} 63... Rxe6 {[%clk
0:01:56.9]} 64. fxe6 {[%clk 0:00:10.6]} 64... Kxe6 {[%clk 0:01:58.5]} 65. Kg5
{[%clk 0:00:12.1]} 65... Ke7 {[%clk 0:01:58.3]} 66. Kg6 {[%clk 0:00:12.3]} 66...
Kf8 {[%clk 0:01:51.9]} 67. f4 {[%clk 0:00:13.1]} 67... Ke7 {[%clk 0:01:52.5]}
68. f5 {[%clk 0:00:14.3]} 68... Kf8 {[%clk 0:01:53.8]} 69. Kf6 {[%clk
0:00:15.4]} 69... Kg8 {[%clk 0:01:55]} 70. Ke7 {[%clk 0:00:16.7]} 70... Kg7
{[%clk 0:01:55.5]} 71. f6+ {[%clk 0:00:18.1]} 71... Kg8 {[%clk 0:01:57.4]} 72.
f7+ {[%clk 0:00:19.5]} 72... Kh7 {[%clk 0:01:59.3]} 73. f8=Q {[%clk 0:00:20.1]}
1-0